bitfinex-derivatives/quotes_SOLF0:USTF0_20250101
["timestamp","ask_amount","ask_price","bid_price","bid_amount"]
[1735740389959,18.0312073,191.38,191.23,16.4466073]
[1735740390457,13.2066073,191.35,191.23,13.2066073]
[1735740390768,2.6191,191.28,191.23,13.2066073]
[1735740391060,2.6187,191.3,191.23,15.8263073]
[1735740391256,3.26,191.33,191.23,15.8263073]
[1735740392260,2.6192,191.27,191.22,2.6198]
[1735740393360,13.2066073,191.32,191.21,1.586]
[1735740393556,1.5846,191.38,191.26,13.2066073]
[1735740393762,3.26,191.37,191.26,13.2066073]
[1735740394163,2.6182,191.35,191.3,2.6186]
[1735740394361,3.26,191.37,191.26,13.2066073]
[1735740394759,13.2066073,191.35,191.25,3.26]
[1735740395259,2.6188,191.3,191.25,3.26]
[1735740395860,3.22,191.33,191.25,3.26]
[1735740396060,2.6189,191.29,191.25,3.26]
[1735740396768,2.6192,191.27,191.21,10.581]
[1735740397064,13.2066073,191.32,191.21,10.581]
[1735740397365,2.6192,191.27,191.22,2.6198]
[1735740398468,2.6188,191.3,191.25,2.6194]
[1735740398767,13.2066073,191.32,191.25,2.6194]
[1735740399165,2.6189,191.29,191.25,2.6194]
[1735740399566,2.6189,191.29,191.24,2.6196]
[1735740399871,2.6188,191.3,191.21,4.7411]
[1735740400166,2.6188,191.3,191.24,2.6194]
[1735740400367,11.03837762,191.3,191.24,11.03897762]
[1735740400569,8.41957762,191.3,191.24,8.41957762]
[1735740401570,11.03827762,191.3,191.24,8.41957762]
[1735740403267,2.6189,191.29,191.24,8.41957762]
[1735740403869,2.6189,191.29,191.24,11.03917762]
[1735740404264,2.6189,191.29,191.24,2.6196]
[1735740404462,2.6189,191.29,191.24,11.03917762]
[1735740404973,2.6191,191.28,191.24,2.6196]
[1735740405366,8.41957762,191.26,191.21,7.3609]
[1735740405569,8.41957762,191.26,191.21,1.586]
[1735740406173,8.41957762,191.26,191.21,10.00557762]
[1735740406373,8.41957762,191.28,191.21,8.41957762]
[1735740407076,11.03867762,191.28,191.23,2.6196]
[1735740407266,8.41957762,191.26,191.21,8.41957762]
[1735740407670,8.41957762,191.27,191.21,8.41957762]
[1735740408068,8.41957762,191.27,191.19,10.02887762]
[1735740408470,8.41957762,191.25,191.19,1.6093]
[1735740409167,8.41957762,191.25,191.15,3.22]
[1735740409379,8.41957762,191.23,191.16,8.41957762]
[1735740409777,8.41957762,191.21,191.17,2.6204]
[1735740410271,8.41957762,191.23,191.17,2.6204]
[1735740410875,2.6199,191.22,191.16,8.41957762]
[1735740411078,2.6199,191.22,191.18,2.6204]
[1735740413681,2.6199,191.22,191.16,8.41957762]
[1735740413980,2.6199,191.22,191.17,2.6205]
[1735740414184,2.6199,191.22,191.18,8.41957762]
[1735740414484,1.5408,191.3,191.2,8.41957762]
[1735740414685,8.41957762,191.27,191.2,8.41957762]
[1735740415475,2.6195,191.25,191.14,3.22]
[1735740415677,2.6195,191.25,191.2,8.41957762]
[1735740416581,2.6195,191.25,191.2,11.03957762]
[1735740418489,2.6196,191.24,191.2,11.03957762]
[1735740418991,8.41957762,191.21,191.14,8.41957762]
[1735740420391,8.41957762,191.17,191.12,8.41957762]
[1735740420585,8.41957762,191.17,191.11,1.576]
[1735740421385,3.22,191.3,191.16,8.41957762]
[1735740421586,8.41957762,191.26,191.2,8.41957762]
[1735740421788,8.41957762,191.28,191.22,8.41957762]
[1735740422289,11.03867762,191.28,191.23,2.6197]
[1735740422589,8.41957762,191.28,191.22,8.41957762]
[1735740422789,8.41957762,191.28,191.22,11.63957762]
[1735740422987,8.41957762,191.28,191.25,2.6194]
[1735740423191,8.41957762,191.28,191.22,11.63957762]
[1735740424291,14.66355409,191.31,191.22,5.8398]
[1735740424696,13.15875409,191.28,191.22,3.22]
[1735740424895,2.6195,191.25,191.22,3.22]
[1735740425893,13.15875409,191.28,191.18,7.8254]
[1735740426094,16.37875409,191.28,191.18,7.8254]
[1735740428492,2.6192,191.27,191.21,2.62]
[1735740429394,2.6193,191.26,191.21,2.62]
[1735740429588,16.37875409,191.28,191.2,2.6201]
[1735740429787,13.15875409,191.25,191.1,2.45919867]
[1735740430098,13.15875409,191.22,191.11,3.22]
[1735740430297,13.15875409,191.22,191.12,2.6212]
[1735740430702,13.15875409,191.22,191.11,3.22]
[1735740431193,2.6205,191.18,191.11,3.22]
[1735740431398,13.15875409,191.22,191.11,3.22]
[1735740431600,2.6204,191.19,191.14,2.6208]
[1735740431794,13.15875409,191.22,191.11,3.22]
[1735740432300,2.6205,191.18,191.13,2.6211]
[1735740432598,13.15875409,191.22,191.13,2.6211]
[1735740432794,2.6204,191.18,191.13,2.6211]
[1735740433691,2.6205,191.17,191.13,2.6211]
[1735740433906,13.15875409,191.19,191.12,3.22]
[1735740434298,2.6205,191.17,191.12,3.22]
[1735740434702,13.15875409,191.19,191.12,5.8412]
[1735740434896,2.6208,191.16,191.12,3.22]
[1735740436599,2.6205,191.17,191.12,5.8412]
[1735740436799,13.15875409,191.19,191.12,3.22]
[1735740437003,17.88005409,191.22,191.12,3.22]
[1735740437404,17.88005409,191.22,191.13,3.22]
[1735740438502,2.6202,191.2,191.15,2.6207]
[1735740439306,2.6204,191.18,191.14,2.6209]
[1735740439894,2.6204,191.18,191.13,3.22]
[1735740440401,2.6203,191.19,191.13,3.22]
[1735740440697,17.88005409,191.22,191.14,2.6209]
[1735740440902,17.88005409,191.22,191.13,3.22]
[1735740442100,2.6203,191.19,191.15,2.6207]
[1735740442300,14.66005409,191.22,191.13,3.22]
[1735740442703,13.15875409,191.19,191.1,5.53699867]
[1735740442905,13.15875409,191.19,190.95,5.2469]
[1735740442906,13.15875409,191.12,191.0,58.47104711]
[1735740443105,13.15875409,191.12,191.01,33.80902354]
[1735740443302,2.6215,191.11,191.05,2.6222]
[1735740443496,13.15875409,191.12,191.05,2.6222]
[1735740443900,2.6217,191.09,191.01,33.80902354]
[1735740444199,2.6217,191.09,191.04,2.6223]
[1735740444396,2.6219,191.08,191.01,4.5735]
[1735740444599,2.6219,191.08,191.02,5.8425]
[1735740445099,2.622,191.07,191.02,5.8425]
[1735740445299,13.15875409,191.09,191.02,5.8425]
[1735740445802,2.6218,191.08,191.02,5.8425]
[1735740446404,2.6218,191.08,191.03,2.6224]
[1735740447308,2.6218,191.08,191.02,5.8426]
[1735740447607,2.6218,191.08,191.02,3.22]
[1735740448401,2.6221,191.06,191.0,2.6228]
[1735740448605,2.6221,191.06,191.0,5.8428]
[1735740449001,2.6222,191.05,191.0,2.6228]
[1735740449808,2.6222,191.05,191.01,2.6227]
[1735740450104,16.37875409,191.09,191.01,2.6227]
[1735740450105,2.622,191.06,191.01,2.6227]
[1735740450508,13.15875409,191.09,190.99,3.22]
[1735740450695,3.22,191.1,190.99,16.37875409]
[1735740450902,13.15875409,191.12,191.02,13.15875409]
[1735740451104,13.15875409,191.19,191.05,13.15875409]
[1735740451402,3.22,191.17,191.06,3.22]
[1735740451602,2.6209,191.15,191.1,2.6214]
[1735740451803,3.22,191.17,191.06,3.22]
[1735740453011,2.6211,191.13,191.06,3.22]
[1735740454404,2.6211,191.13,191.08,2.6217]
[1735740454613,3.22,191.17,191.06,3.22]
[1735740454807,4.5797,191.18,191.06,3.22]
[1735740455014,3.22,191.23,191.11,13.15875409]
[1735740455210,3.22,191.23,191.11,16.37875409]
[1735740455508,16.39875409,191.24,191.14,13.15875409]
[1735740455710,2.62,191.21,191.15,2.6208]
[1735740456008,16.39875409,191.24,191.11,16.37875409]
[1735740456517,13.15875409,191.21,191.11,5.8412]
[1735740456709,13.15875409,191.15,191.07,1.579]
[1735740456904,13.15875409,191.12,191.05,3.24]
[1735740457413,13.15875409,191.12,191.03,6.4207]
[1735740458005,13.15875409,191.12,191.03,3.24]
[1735740458211,16.39875409,191.12,191.03,3.24]
[1735740458616,2.6219,191.07,191.03,3.24]
[1735740458812,13.15875409,191.09,190.99,4.764]
[1735740459113,13.15875409,191.09,190.99,3.26]
[1735740459416,2.6223,191.04,190.99,3.26]
[1735740460012,2.6223,191.04,190.96,13.15875409]
[1735740460212,2.6223,191.04,190.97,3.26]
[1735740460414,2.6223,191.04,190.97,2.6233]
[1735740460619,2.6223,191.04,190.97,3.26]
[1735740461110,3.26,191.07,190.94,1.6124]
[1735740461312,21.1057638,191.06,190.94,1.6124]
[1735740461616,21.1057638,191.06,190.94,5.8837]
[1735740461818,2.6228,191.01,190.94,5.8837]
[1735740462118,2.6228,191.01,190.95,2.6235]
[1735740463215,21.1057638,191.06,190.95,2.6235]
[1735740463421,2.6229,191.0,190.95,2.6235]
[1735740464716,21.1057638,191.06,190.92,5.72098711]
[1735740464921,2.6232,190.98,190.93,2.6237]
[1735740465822,2.6232,190.98,190.92,2.46098711]
[1735740466024,2.6232,190.98,190.92,5.08488711]
[1735740466222,3.26,191.02,190.92,2.46098711]
[1735740466521,2.6234,190.96,190.9,52.55717793]
[1735740466723,3.26,190.97,190.86,3.26]
[1735740466923,2.6238,190.94,190.86,3.26]
[1735740468224,3.1788,190.96,190.86,3.26]
[1735740468420,2.6238,190.93,190.86,5.8847]
[1735740468929,2.624,190.92,190.86,5.8847]
[1735740469129,3.1788,190.96,190.86,5.8847]
[1735740469828,3.1788,190.96,190.85,21.1057638]
[1735740470525,3.1788,190.96,190.9,2.6242]
[1735740470927,2.6237,190.95,190.89,2.6244]
[1735740471423,3.1788,190.96,190.89,2.6244]
[1735740472427,2.6237,190.94,190.89,2.6244]
[1735740472618,3.1788,190.96,190.87,5.8845]
[1735740473025,3.1788,190.96,190.83,3.26]
[1735740473225,2.624,190.92,190.86,2.6246]
[1735740473432,2.624,190.92,190.83,3.26]
[1735740474133,3.1788,190.96,190.9,2.6242]
[1735740474333,1.5624,190.99,190.9,2.6242]
[1735740474632,3.26,190.98,190.9,2.6242]
[1735740475233,2.6234,190.96,190.91,2.624]
[1735740476535,2.6236,190.95,190.89,2.6242]
[1735740476734,3.26,190.98,190.83,3.26]
[1735740478336,2.6239,190.93,190.83,3.26]
[1735740478933,2.6239,190.93,190.87,2.6245]
[1735740479438,2.624,190.92,190.87,2.6245]
[1735740480036,21.1057638,190.97,190.87,2.6245]
[1735740480242,13.20962882,190.94,190.86,2.6248]
[1735740480737,2.6242,190.9,190.85,2.6249]
[1735740481234,2.6242,190.9,190.82,16.27462882]
[1735740481438,2.6245,190.89,190.83,2.6251]
[1735740481640,2.6245,190.89,190.82,16.27462882]
[1735740482241,2.6245,190.89,190.84,2.625]
[1735740483037,2.6248,190.86,190.82,2.6252]
[1735740483340,2.6248,190.86,190.79,13.20962882]
[1735740484342,2.6247,190.87,190.79,13.20962882]
[1735740484538,3.2196,190.9,190.79,13.20962882]
[1735740484839,13.20962882,190.88,190.76,17.87452882]
[1735740485042,2.6253,190.83,190.76,7.9249]
[1735740485441,2.6253,190.83,190.78,2.6259]
[1735740485940,13.20962882,190.85,190.73,3.2]
[1735740486142,13.20962882,190.85,190.72,3.2]
[1735740486342,2.6258,190.79,190.72,3.2]
[1735740486543,13.20962882,190.79,190.69,4.7684]
[1735740486744,13.20962882,190.79,190.69,7.9684]
[1735740486940,13.20962882,190.79,190.69,6.4096]
[1735740487141,13.20962882,190.79,190.71,2.6268]
[1735740487543,16.40962882,190.79,190.71,2.6268]
[1735740487945,2.6262,190.76,190.7,2.627]
[1735740488143,2.6262,190.76,190.69,6.4096]
[1735740488343,2.6262,190.76,190.69,3.2096]
[1735740488546,2.6266,190.73,190.68,2.6272]
[1735740488846,16.40962882,190.73,190.64,50.00375203]
[1735740489248,2.6267,190.72,190.66,2.6275]
[1735740489545,16.40962882,190.73,190.66,2.6275]
[1735740489938,2.6269,190.71,190.64,2.6277]
[1735740490138,16.40962882,190.73,190.64,2.6277]
[1735740490638,2.6271,190.7,190.64,2.6277]
[1735740491044,2.6271,190.7,190.64,2.6278]
[1735740491248,2.6272,190.69,190.64,2.6278]
[1735740491640,3.2,190.77,190.65,13.20962882]
[1735740492042,3.2,190.8,190.68,13.20962882]
[1735740492349,3.2,190.8,190.69,22.68726389]
[1735740492750,5.8257,190.8,190.73,2.6264]
[1735740492952,3.2,190.8,190.71,3.2]
[1735740493249,2.6254,190.82,190.77,2.626]
[1735740493444,3.2,190.84,190.77,2.626]
[1735740494051,21.15846389,190.87,190.78,2.6259]
[1735740494252,3.2,190.85,190.78,2.6259]
[1735740494552,3.2,190.85,190.72,21.15846389]
[1735740494748,21.15846389,190.87,190.72,21.15846389]
[1735740495051,4.8604,190.89,190.72,21.15846389]
[1735740495254,4.8604,190.89,190.75,21.15846389]
[1735740495455,2.6241,190.91,190.85,2.6249]
[1735740496447,2.6239,190.93,190.81,24.35846389]
[1735740496952,2.6237,190.95,190.81,24.35846389]
[1735740497145,3.2,190.96,190.84,21.15846389]
[1735740497342,3.2,190.96,190.85,1.5353]
[1735740497552,4.829,190.97,190.9,2.6242]
[1735740498253,4.829,190.97,190.88,2.6244]
[1735740498952,4.829,190.97,190.86,5.8248]
[1735740499149,4.829,190.97,190.86,3.2]
[1735740499555,3.2077,190.97,190.9,2.6242]
[1735740499954,3.2,190.99,190.86,3.2]
[1735740500153,3.2,190.99,190.92,2.624]
[1735740500551,21.15846389,191.02,190.92,2.624]
[1735740500851,21.15846389,191.02,190.93,2.6238]
[1735740501055,3.2,191.03,190.91,3.2]
[1735740501356,2.6227,191.01,190.94,2.6236]
[1735740501755,2.6232,190.98,190.91,5.824]
[1735740501951,3.2,191.04,190.91,3.2]
[1735740502953,2.6229,191.0,190.94,2.6237]
[1735740503150,24.36256389,191.08,190.91,3.2]
[1735740503451,3.2,191.07,190.91,3.2]
[1735740503652,2.6224,191.03,190.91,3.2]
[1735740503850,3.2,191.07,190.91,3.2]
[1735740504356,2.6226,191.02,190.96,2.6234]
[1735740504555,3.2,191.07,190.96,5.8234]
[1735740504949,24.36256389,191.08,190.96,5.8234]
[1735740505153,3.2,191.07,190.96,5.8234]
[1735740505354,2.6225,191.03,190.97,2.6233]
[1735740505749,3.2,191.07,190.97,2.6233]
[1735740505946,3.2,191.07,190.98,2.6231]
[1735740506151,24.36256389,191.08,190.98,2.6231]
[1735740506347,24.36256389,191.08,190.96,3.2]
[1735740506553,24.36256389,191.08,190.96,5.8233]
[1735740506752,24.36256389,191.08,190.96,3.2]
[1735740506952,2.6226,191.02,190.96,3.2]
[1735740507157,24.36256389,191.08,190.96,3.2]
[1735740507752,6.4041,191.08,190.96,3.2]
[1735740507953,3.2041,191.08,190.96,24.35846389]
[1735740508257,3.2041,191.08,190.97,1.5205]
[1735740508456,1.5674,191.09,190.97,3.1148]
[1735740508646,3.2,191.12,190.97,3.1148]
[1735740509757,2.6221,191.06,191.0,2.6227]
[1735740509951,1.5774,191.11,190.97,3.1148]
[1735740510655,2.6218,191.08,191.01,2.6227]
[1735740510853,2.6218,191.08,191.01,5.8227]
[1735740511055,2.6218,191.08,191.02,2.6226]
[1735740511255,2.6218,191.08,191.01,3.2]
[1735740511657,1.5774,191.11,191.04,2.6222]
[1735740511962,3.2,191.13,191.01,3.2]
[1735740512663,2.6215,191.11,191.01,3.2]
[1735740512863,3.2,191.13,191.01,3.2]
[1735740513163,2.6219,191.07,191.01,3.2]
[1735740513354,24.35846389,191.13,191.01,3.2]
[1735740514168,2.622,191.07,191.01,3.2]
[1735740514866,2.6222,191.05,191.01,3.2]
[1735740515166,21.15846389,191.1,191.01,3.2]
[1735740515661,3.22,191.12,191.01,5.8226]
[1735740515855,3.22,191.12,191.01,3.2]
[1735740516056,2.6217,191.09,191.04,2.6223]
[1735740516560,3.22,191.12,191.01,3.2]
[1735740516755,21.15846389,191.16,191.01,3.2]
[1735740516970,2.6215,191.11,191.05,2.622]
[1735740517359,21.15846389,191.16,191.06,3.22]
[1735740517565,2.6211,191.13,191.08,2.6217]
[1735740517760,2.6211,191.13,191.06,3.22]
[1735740518669,2.6211,191.13,191.07,2.6219]
[1735740518861,2.6212,191.12,191.07,2.6219]
[1735740519262,21.15846389,191.16,191.06,3.22]
[1735740519462,2.6214,191.11,191.06,3.22]
[1735740519666,21.15846389,191.16,191.06,3.22]
[1735740520465,2.6211,191.13,191.07,2.6219]
[1735740520668,21.15846389,191.16,191.06,3.22]
[1735740521058,2.6216,191.09,191.06,3.22]
[1735740521262,3.22,191.13,190.99,21.15846389]
[1735740521568,24.37846389,191.13,191.0,3.22]
[1735740521762,2.6221,191.06,191.01,3.22]
[1735740521963,2.6221,191.06,191.0,3.22]
[1735740522269,13.18919649,191.09,190.97,3.1148]
[1735740522462,13.18919649,191.06,190.97,6.3348]
[1735740522863,2.6226,191.02,190.97,7.3638]
[1735740523464,2.6226,191.02,190.97,5.8433]
[1735740524364,2.6226,191.02,190.98,2.6231]
[1735740524565,2.6226,191.02,190.96,3.22]
[1735740524765,3.2325,191.07,190.96,3.22]
[1735740525065,3.2325,191.07,190.96,5.8433]
[1735740525266,3.2325,191.07,190.96,3.22]
[1735740525869,3.22,191.07,190.96,3.22]
[1735740526262,5.8419,191.07,190.96,3.22]
[1735740526566,3.22,191.07,190.96,3.22]
[1735740526969,3.22,191.07,191.02,2.6225]
[1735740527165,3.22,191.11,190.97,21.10926014]
[1735740527366,5.8415,191.11,191.01,2.6227]
[1735740527672,3.22,191.11,191.01,3.22]
[1735740528063,2.6215,191.11,191.01,3.22]
[1735740528269,3.22,191.15,191.02,1.6342]
[1735740528466,2.6212,191.13,191.07,2.6218]
[1735740528870,2.6212,191.13,191.03,21.10926014]
[1735740529371,3.22,191.15,191.03,21.10926014]
[1735740529572,2.6212,191.12,191.07,2.6218]
[1735740529769,3.22,191.15,191.03,21.10926014]
[1735740529970,3.22,191.15,191.02,3.1805]
[1735740530273,3.22,191.15,191.03,3.22]
[1735740531576,2.6217,191.09,191.04,2.6223]
[1735740531772,3.22,191.15,191.03,3.22]
[1735740532976,2.6211,191.13,191.06,2.622]
[1735740533170,2.6211,191.13,191.03,3.22]
[1735740534176,2.6212,191.12,191.03,3.22]
[1735740535277,2.6215,191.1,191.06,2.622]
[1735740535477,2.6215,191.1,191.02,6.4005]
[1735740535777,3.22,191.16,191.02,6.4005]
[1735740535973,21.10926014,191.14,191.02,4.8542]
[1735740536175,21.10926014,191.11,190.99,3.22]
[1735740536376,2.6221,191.06,191.01,2.6226]
[1735740538575,2.6221,191.06,191.02,2.6225]
[1735740538980,2.6215,191.1,190.99,24.32926014]
[1735740539176,3.22,191.13,190.99,24.32926014]
[1735740539177,3.22,191.13,191.06,2.622]
[1735740539577,2.6212,191.12,190.99,24.32926014]
[1735740539777,2.6212,191.12,191.02,21.10926014]
[1735740540477,3.22,191.16,190.99,24.32926014]
[1735740541475,3.22,191.16,191.05,2.622]
[1735740541778,3.22,191.16,190.99,24.32926014]
[1735740542079,2.6215,191.11,191.06,2.622]
[1735740542671,2.6216,191.1,191.05,2.6221]
[1735740542875,3.22,191.16,191.05,2.6221]
[1735740543181,3.22,191.16,190.99,24.32926014]
[1735740543380,21.10926014,191.14,191.0,3.22]
[1735740543780,2.6215,191.1,191.04,2.6222]
[1735740543984,21.10926014,191.14,191.04,2.6222]
[1735740544279,13.18675321,191.11,191.04,2.6222]
[1735740544491,16.38675321,191.11,191.05,2.622]
[1735740544679,16.38675321,191.11,191.0,3.22]
[1735740544980,16.38675321,191.11,191.01,13.18675321]
[1735740545176,3.2,191.11,191.01,13.18675321]
[1735740545377,2.6215,191.1,191.01,13.18675321]
[1735740545580,13.18675321,191.14,191.01,13.18675321]
[1735740546282,2.6212,191.12,191.08,2.6217]
[1735740546784,13.18675321,191.14,191.05,3.2]
[1735740546987,2.6211,191.13,191.09,2.6216]
[1735740547685,2.6212,191.12,191.08,2.6218]
[1735740548086,17.90325321,191.17,191.05,3.2]
[1735740548485,13.18675321,191.14,191.05,3.2]
[1735740549782,13.18675321,191.11,191.0,3.2]
[1735740549984,1.6402,191.1,191.0,3.2]
[1735740550489,2.622,191.07,191.02,2.6225]
[1735740550692,1.6402,191.1,191.0,3.2]
[1735740551286,2.6219,191.07,191.02,2.6226]
[1735740552092,16.38675321,191.11,191.0,3.2]
[1735740552093,13.18675321,191.11,191.0,3.2]
[1735740552393,3.2,191.13,191.02,13.18675321]
[1735740552692,3.2,191.13,191.05,13.18675321]
[1735740552989,1.5939,191.16,191.05,16.38675321]
[1735740553385,73.1904509,191.17,191.05,16.38675321]
[1735740553891,2.6208,191.15,191.08,2.6217]
[1735740554088,3.2,191.16,191.05,16.38675321]
[1735740554287,3.2,191.16,191.05,3.2]
[1735740554679,3.2,191.16,191.07,2.6218]
[1735740554883,12.06609983,191.16,191.05,3.2]
[1735740555085,2.6218,191.09,191.04,2.6222]
[1735740555284,21.08835255,191.14,191.03,4.7403]
[1735740555480,8.86609983,191.13,191.03,3.2]
[1735740555690,2.6218,191.08,191.04,2.6223]
[1735740556490,8.86609983,191.13,191.03,3.2]
[1735740556689,1.4938,191.12,191.03,3.2]
[1735740556889,3.2,191.11,191.03,3.2]
[1735740557795,2.6214,191.11,191.07,2.6218]
[1735740557994,70.55329752,191.15,191.03,3.2]
[1735740558295,2.6212,191.12,191.08,2.6217]
[1735740558489,8.86609983,191.14,191.03,3.2]
[1735740558686,64.69749769,191.17,191.03,3.2]
[1735740558994,2.6208,191.15,191.1,2.6214]
[1735740559392,8.86602505,191.16,191.03,3.2]
[1735740559593,64.69749769,191.17,191.07,2.6218]
[1735740559789,6.2103,191.17,191.07,2.6218]
[1735740560887,27.29865255,191.17,191.05,2.6221]
[1735740561388,8.86546005,191.16,191.03,3.2]
[1735740561700,19.33632923,191.16,191.02,3.2]
[1735740561885,2.6217,191.09,191.02,3.2]
[1735740562091,3.2,191.12,191.02,3.2]
[1735740562592,1.5267,191.11,191.02,3.2]
[1735740563386,2.6218,191.08,191.03,2.6224]
[1735740563588,1.5267,191.11,191.02,3.2]
[1735740563791,3.2,191.12,191.02,3.2]
[1735740564199,8.86546005,191.13,191.02,3.2]
[1735740564395,8.86546005,191.14,191.02,3.2]
[1735740564992,2.6213,191.12,191.07,2.6218]
[1735740565699,2.6213,191.12,191.08,2.6217]
[1735740566197,8.86546005,191.15,191.03,21.08835255]
[1735740566597,15.40269229,191.15,191.02,3.2]
[1735740566789,8.86546005,191.15,191.02,3.2]
[1735740566992,2.6217,191.09,191.02,3.2]
[1735740567592,2.6217,191.09,191.04,2.6222]
[1735740567795,2.6217,191.09,191.02,3.2]
[1735740568297,2.6217,191.09,191.05,2.6221]
[1735740568695,8.86546005,191.14,191.02,3.2]
[1735740568996,2.6219,191.08,191.04,2.6223]
[1735740569297,15.40611492,191.14,191.02,3.2]
[1735740569492,2.6219,191.07,191.03,2.6224]
[1735740571300,2.6218,191.08,191.04,2.6223]
[1735740571703,3.2,191.11,191.01,3.2]
[1735740572000,2.6216,191.1,191.05,2.6221]
[1735740572595,2.6216,191.1,191.06,2.622]
[1735740573200,8.86546005,191.13,191.01,3.2]
[1735740573502,2.6216,191.09,191.05,2.6222]
[1735740573900,2.6218,191.08,191.03,2.6223]
[1735740574098,2.6218,191.08,191.01,3.2]
[1735740574496,2.6219,191.07,191.03,2.6224]
[1735740574801,3.93611052,191.12,190.98,3.1103]
[1735740575005,2.6222,191.05,191.01,2.6226]
[1735740575502,3.24,191.09,190.98,3.1103]
[1735740575698,2.6223,191.04,190.99,2.6229]
[1735740575898,2.6223,191.04,190.98,6.3503]
[1735740576403,2.6223,191.04,191.0,2.6227]
[1735740576696,2.6222,191.05,191.0,2.6227]
[1735740576902,2.6222,191.05,191.01,2.6227]
[1735740577400,8.86546005,191.08,190.97,17.98758247]
[1735740577603,13.56236005,191.08,190.97,17.98758247]
[1735740577797,2.6226,191.03,190.98,2.623]
[1735740578205,13.56236005,191.08,190.97,14.74758247]
[1735740578402,2.6222,191.05,191.01,2.6227]
[1735740578607,2.6222,191.05,190.97,14.74758247]
[1735740579007,2.6222,191.05,191.0,2.6228]
[1735740579602,13.56236005,191.08,190.97,14.74758247]
[1735740579603,2.6223,191.04,190.99,2.623]
[1735740580112,2.6222,191.05,191.01,2.6227]
[1735740580405,13.56236005,191.08,190.97,13.18888247]
[1735740580607,2.6221,191.06,191.01,2.6226]
[1735740580803,4.6969,191.08,191.01,2.6226]
[1735740581205,2.6223,191.05,191.0,2.6228]
[1735740582203,4.6969,191.08,191.0,2.6228]
[1735740582410,2.6225,191.03,190.99,2.623]
[1735740582811,2.6223,191.05,191.0,2.6227]
[1735740583010,2.6223,191.05,190.97,13.18888247]
[1735740584508,2.6223,191.05,191.01,2.6227]
[1735740585113,4.6969,191.08,190.97,13.18888247]
[1735740585417,2.6219,191.07,191.03,2.6224]
[1735740585814,2.6219,191.07,191.02,2.6226]
[1735740586117,2.6221,191.06,191.02,2.6226]
[1735740586712,4.6969,191.08,190.97,13.18888247]
[1735740586919,4.6969,191.08,190.96,3.24]
[1735740586920,3.24,191.1,191.0,13.18888247]
[1735740587419,2.6217,191.09,191.05,2.6221]
[1735740587620,8.8644598,191.11,191.01,3.24]
[1735740588018,2.6213,191.12,191.07,2.6218]
[1735740588219,60.06539769,191.15,191.03,13.18888247]
[1735740588417,8.86203956,191.14,191.06,13.18888247]
[1735740588615,60.06539769,191.15,191.06,13.18888247]
[1735740589023,1.5782,191.15,191.06,13.18888247]
[1735740589517,2.6211,191.13,191.06,13.18888247]
[1735740590422,1.5782,191.15,191.06,13.18888247]
[1735740590622,2.6213,191.12,191.03,13.18888247]
[1735740590824,1.5782,191.15,191.03,13.18888247]
[1735740592426,2.6214,191.11,191.06,2.6219]
[1735740593725,2.6215,191.1,191.06,2.6219]
[1735740594122,3.24,191.12,190.94,57.23349343]
[1735740594325,2.622,191.06,190.98,13.18888247]
[1735740595222,2.622,191.06,191.02,2.6225]
[1735740595427,2.6222,191.05,190.99,3.24]
[1735740595626,13.18888247,191.1,191.0,2.6228]
[1735740595827,3.061,191.09,191.0,2.6228]
[1735740596328,3.061,191.09,191.02,2.6226]